[Event "European School-ch 2019"]
[Site "Mamaia"]
[Date "2019.05.31"]
[Round "1.1"]
[White "Schitco, Ivan"]
[Black "Verbin, Valentina"]
[Result "1-0"]
[ECO "D70"]
[WhiteElo "2437"]
[BlackElo "1961"]
[Annotator "ChessBase"]
[PlyCount "59"]
[EventDate "2019.05.31"]
[EventType "swiss"]
[EventCountry "ROU"]
[SourceTitle "playchess.com"]
[Source "ChessBase"]
[SourceQuality "1"]
[TimeControl "40/5400+30:1800+30"]

1. d4 {[%emt 0:00:00]} Nf6 {[%emt 0:00:00]} 2. c4 {[%emt 0:00:00]} g6 {[%emt 0:00:00]} 3. Nf3 {[%emt 0:00:00]} Bg7 {[%emt 0:00:00]} 4. e3 {[%emt 0:00:09]} O-O {[%emt 0:00:13]} 5. Be2 {[%emt 0:00:12]} d6 {[%emt 0:00:19]} 6. Nc3 {[%emt 0:00:14]} Bf5 {[%emt 0:04:36]} 7. O-O {[%emt 0:06:18]} c5 {[%emt 0:03:21]} 8. Nh4 {[%emt 0:07:57]} Bc8 {[%emt 0:06:09]} 9. d5 {[%emt 0:01:27]} e5 {[%emt 0:04:16]} 10. Nf3 {[%emt 0:02:54]} a6 {[%emt 0:08:28]} 11. Qc2 {[%emt 0:02:38]} Ne8 {[%emt 0:04:46]} 12. a3 {[%emt 0:06:20]} f5 {[%emt 0:00:59]} 13. e4 {[%emt 0:01:11]} b5 {[%emt 0:18:08]} 14. cxb5 {[%emt 0:01:30]} axb5 {[%emt 0:00:45]} 15. Bxb5 {[%emt 0:02:54]} Nc7 {[%emt 0:07:42]} 16. Be2 {[%emt 0:05:15]} fxe4 {[%emt 0:07:14]} 17. Ng5 {[%emt 0:03:22]} Bf5 {[%emt 0:01:28]} 18. Ngxe4 {[%emt 0:01:50]} Nba6 {[%emt 0:01:59]} 19. Rb1 {[%emt 0:02:32]} Qh4 {[%emt 0:04:34]} 20. f3 {[%emt 0:05:09]} Rfb8 {[%emt 0:05:06]} 21. Be3 {[%emt 0:05:28]} Qe7 {[%emt 0:05:57]} 22. Qd2 {[%emt 0:03:03]} Ne8 {[%emt 0:04:34]} 23. Rbe1 {[%emt 0:06:22]} Qb7 {[%emt 0:01:18]} 24. Bb5 {[%emt 0:03:06]} Nac7 {[%emt 0:01:50]} 25. Bc6 {[%emt 0:00:29]} Qxb2 {[%emt 0:00:24]} 26. Qxb2 {[%emt 0:00:07]} Rxb2 {[%emt 0:00:07]} 27. Bxa8 {[%emt 0:00:03]} Nxa8 {[%emt 0:00:06]} 28. Rb1 {[%emt 0:00:07]} Rxb1 {[%emt 0:02:51]} 29. Rxb1 {[%emt 0:00:06]} Nac7 {[%emt 0:00:17]} 30. Rb6 {[%emt 0:00:35]} 1-0

[Event "European School-ch 2019"]
[Site "Mamaia"]
[Date "2019.05.31"]
[Round "1.2"]
[White "Ozkurt, Kutay"]
[Black "Stoleriu, George"]
[Result "0-1"]
[ECO "C03"]
[WhiteElo "1885"]
[BlackElo "2372"]
[Annotator "ChessBase"]
[PlyCount "120"]
[EventDate "2019.05.31"]
[EventType "swiss"]
[EventCountry "ROU"]
[SourceTitle "playchess.com"]
[Source "ChessBase"]
[SourceQuality "1"]
[TimeControl "40/5400+30:1800+30"]

1. e4 e6 2. d4 d5 3. Nd2 Be7 4. Ngf3 Nf6 5. e5 Nfd7 6. Bd3 c5 7. c3 Nc6 8. O-O g5 9. dxc5 g4 10. Nd4 Ndxe5 11. Bb5 Bd7 12. Re1 Qc7 13. N2b3 Nxd4 14. Bxd7+ Nxd7 15. cxd4 h5 16. Bd2 Nf6 17. g3 h4 18. Bf4 Qd7 19. Be5 Rg8 20. Bxf6 Bxf6 21. Qc2 Rg6 22. Rac1 Rc8 23. Re2 Kf8 24. Qc3 Kg7 25. Qa5 a6 26. Qb4 Rh6 27. Na5 hxg3 28. fxg3 b6 29. Nb3 a5 30. Qxb6 a4 31. c6 Qc7 32. Qxc7 Rxc7 33. Na5 Bxd4+ 34. Kg2 Rh8 35. b4 axb3 36. axb3 Bb6 37. b4 Bxa5 38. bxa5 Ra8 39. Rc5 Ra6 40. Rec2 Kf8 41. Ra2 Ke7 42. Ra4 f5 43. h4 gxh3+ 44. Kxh3 Kd6 45. Rb5 Rcxc6 46. Rab4 Rc4 47. Rb1 Ke5 48. Kg2 Ra4 49. Re1+ Kf6 50. Rb8 R4xa5 51. Rf8+ Kg7 52. Re8 Kf7 53. Rh8 Ra1 54. Rxa1 Rxa1 55. Kf3 Kf6 56. Re8 Ra3+ 57. Kf2 Ke5 58. Rg8 Ke4 59. g4 f4 60. Re8 e5 0-1

[Event "European School-ch 2019"]
[Site "Mamaia"]
[Date "2019.05.31"]
[Round "1.3"]
[White "Gayun, Dmytro"]
[Black "Celik, Eylul"]
[Result "1/2-1/2"]
[ECO "D10"]
[WhiteElo "2259"]
[BlackElo "1840"]
[Annotator "ChessBase"]
[PlyCount "135"]
[EventDate "2019.05.31"]
[EventType "swiss"]
[EventCountry "ROU"]
[SourceTitle "playchess.com"]
[Source "ChessBase"]
[SourceQuality "1"]
[TimeControl "40/5400+30:1800+30"]

1. d4 {[%emt 0:00:00]} d5 {[%emt 0:00:00]} 2. c4 {[%emt 0:00:00]} c6 {[%emt 0:00:00]} 3. e3 {[%emt 0:00:00]} e6 {[%emt 0:00:41]} 4. Nf3 {[%emt 0:00:05]} Bd6 {[%emt 0:00:13]} 5. b3 {[%emt 0:00:29]} Qe7 {[%emt 0:01:13]} 6. Bb2 {[%emt 0:00:51]} f5 {[%emt 0:00:18]} 7. Bd3 {[%emt 0:04:58]} Nf6 {[%emt 0:00:22]} 8. O-O {[%emt 0:01:01]} O-O {[%emt 0:01:54]} 9. Nc3 {[%emt 0:00:30]} Ne4 {[%emt 0:02:52]} 10. Rc1 {[%emt 0:00:47]} Nd7 {[%emt 0:01:46]} 11. Ne2 {[%emt 0:03:43]} Qf6 {[%emt 0:15:39]} 12. Nf4 {[%emt 0:09:22]} g5 {[%emt 0:07:21]} 13. Nh5 {[%emt 0:00:42]} Qh6 {[%emt 0:02:01]} 14. Ne5 {[%emt 0:00:58]} Nef6 {[%emt 0:20:52]} 15. Nxf6+ {[%emt 0:01:13]} Qxf6 {[%emt 0:02:33]} 16. f4 {[%emt 0:01:04]} g4 {[%emt 0:04:48]} 17. Qe1 {[%emt 0:03:40]} Qg7 {[%emt 0:07:57]} 18. b4 {[%emt 0:09:56]} Nf6 {[%emt 0:08:08]} 19. b5 {[%emt 0:03:01]} Bd7 {[%emt 0:05:00]} 20. cxd5 {[%emt 0:05:16]} cxd5 {[%emt 0:00:19]} 21. g3 {[%emt 0:01:00]} Ne4 {[%emt 0:03:46]} 22. Qd1 {[%emt 0:13:55]} h5 {[%emt 0:04:23]} 23. Bxe4 {[%emt 0:00:40]} fxe4 {[%emt 0:00:22]} 24. Qb3 {[%emt 0:01:24]} Bxe5 {[%emt 0:02:40]} 25. dxe5 {[%emt 0:00:20]} Rac8 {[%emt 0:01:21]} 26. Rxc8 {[%emt 0:05:49]} Rxc8 {[%emt 0:01:14]} 27. f5 {[%emt 0:00:20]} Rf8 {[%emt 0:00:05]} 28. f6 {[%emt 0:00:26]} Qf7 {[%emt 0:00:31]} 29. Bd4 {[%emt 0:02:39]} Qe8 {[%emt 0:02:01]} 30. Bxa7 {[%emt 0:09:44]} Bxb5 {[%emt 0:00:28]} 31. Rb1 {[%emt 0:00:34]} Bc6 {[%emt 0:01:24]} 32. Bc5 {[%emt 0:00:45]} Rf7 {[%emt 0:00:02]} 33. Be7 {[%emt 0:00:53]} Rh7 {[%emt 0:01:14]} 34. Qb4 {[%emt 0:03:38]} Kf7 {[%emt 0:00:37]} 35. Rf1 {[%emt 0:05:43]} Rh8 {[%emt 0:02:06]} 36. Qd2 {[%emt 0:04:30]} Qb8 {[%emt 0:00:34]} 37. Bd6 {[%emt 0:01:21]} Qa7 {[%emt 0:00:16]} 38. Qf2 {[%emt 0:00:37]} Rg8 {[%emt 0:00:55]} 39. Rb1 {[%emt 0:03:00]} Qa6 {[%emt 0:00:40]} 40. Rb3 {[%emt 0:02:07]} Qc4 {[%emt 0:00:39]} 41. Qb2 {[%emt 0:31:27]} Qa6 {[%emt 0:30:42]} 42. a3 {[%emt 0:00:00]} h4 {[%emt 0:00:00]} 43. Rc3 {[%emt 0:00:00]} Qa4 {[%emt 0:00:00]} 44. Qc2 {[%emt 0:00:00]} Qxc2 {[%emt 0:00:00]} 45. Rxc2 {[%emt 0:00:00]} h3 {[%emt 0:00:00]} 46. Kf2 {[%emt 0:00:00]} Ra8 {[%emt 0:00:00]} 47. Ke1 {[%emt 0:00:00]} Ra4 {[%emt 0:00:00]} 48. Bb4 {[%emt 0:00:00]} Ra8 {[%emt 0:00:00]} 49. Kd2 {[%emt 0:00:00]} Rg8 {[%emt 0:00:00]} 50. Rb2 {[%emt 0:00:21]} Rc8 {[%emt 0:00:00]} 51. Bd6 {[%emt 0:02:14]} Ra8 {[%emt 0:00:00]} 52. Kc3 {[%emt 0:00:38]} Ra4 {[%emt 0:00:00]} 53. Bb4 {[%emt 0:00:06]} Ra8 {[%emt 0:00:00]} 54. Kd4 {[%emt 0:00:29]} Rc8 {[%emt 0:00:00]} 55. Bc5 {[%emt 0:01:32]} Ra8 {[%emt 0:00:00]} 56. Bb4 {[%emt 0:00:41]} Rc8 {[%emt 0:00:00]} 57. Rc2 {[%emt 0:01:56]} Bd7 {[%emt 0:00:00]} 58. Rxc8 Bxc8 {[%emt 0:00:00]} 59. Bd6 {[%emt 0:01:02]} Bd7 {[%emt 0:00:00]} 60. Kc3 {[%emt 0:00:10]} Bb5 {[%emt 0:00:00]} 61. Bc5 {[%emt 0:00:45]} Ke8 {[%emt 0:00:00]} 62. Kb4 {[%emt 0:00:25]} Ba6 {[%emt 0:00:00]} 63. Bd4 {[%emt 0:00:59]} Kf7 {[%emt 0:00:00]} 64. Kc5 {[%emt 0:00:07]} Ke8 {[%emt 0:00:00]} 65. a4 {[%emt 0:00:20]} Kf7 {[%emt 0:00:00]} 66. Kd6 {[%emt 0:00:27]} Bc4 {[%emt 0:00:00]} 67. Kd7 {[%emt 0:01:07]} Ba6 {[%emt 0:00:00]} 68. Kd6 {[%emt 0:00:07]} 1/2-1/2

[Event "European School-ch 2019"]
[Site "Mamaia"]
[Date "2019.05.31"]
[Round "1.4"]
[White "Sahin, Hayrun Nisa"]
[Black "Bulau, Andrei-Cristian"]
[Result "1/2-1/2"]
[ECO "B30"]
[WhiteElo "1771"]
[BlackElo "2244"]
[Annotator "ChessBase"]
[PlyCount "76"]
[EventDate "2019.05.31"]
[EventType "swiss"]
[EventCountry "ROU"]
[SourceTitle "playchess.com"]
[Source "ChessBase"]
[SourceQuality "1"]
[TimeControl "40/5400+30:1800+30"]

1. e4 {[%emt 0:00:00]} c5 {[%emt 0:00:00]} 2. Nf3 {[%emt 0:00:00]} Nc6 {[%emt 0:00:00]} 3. Bb5 {[%emt 0:02:15]} d6 {[%emt 0:00:09]} 4. O-O {[%emt 0:00:51]} Bd7 {[%emt 0:00:35]} 5. h3 {[%emt 0:02:28]} Nf6 {[%emt 0:00:53]} 6. Re1 {[%emt 0:05:08]} a6 {[%emt 0:00:55]} 7. Bf1 {[%emt 0:01:59]} e5 {[%emt 0:00:29]} 8. c3 {[%emt 0:03:25]} Be7 {[%emt 0:00:39]} 9. d4 {[%emt 0:02:14]} O-O {[%emt 0:00:46]} 10. Bg5 {[%emt 0:12:33]} h6 {[%emt 0:01:55]} 11. Bh4 {[%emt 0:02:07]} Qc7 {[%emt 0:09:43]} 12. Na3 {[%emt 0:04:59]} Rad8 {[%emt 0:03:51]} 13. Nc4 {[%emt 0:03:13]} g5 {[%emt 0:17:19]} 14. Bg3 {[%emt 0:05:29]} Nh5 {[%emt 0:03:38]} 15. Nfxe5 {[%emt 0:16:32]} Nxg3 {[%emt 0:00:57]} 16. Nxc6 {[%emt 0:16:30]} Bxc6 {[%emt 0:01:49]} 17. fxg3 {[%emt 0:00:06]} d5 {[%emt 0:01:54]} 18. exd5 {[%emt 0:02:56]} Bxd5 {[%emt 0:02:49]} 19. Qh5 {[%emt 0:01:45]} Bf6 {[%emt 0:07:53]} 20. Ne3 {[%emt 0:03:06]} Bg7 {[%emt 0:10:03]} 21. c4 {[%emt 0:04:02]} Be4 {[%emt 0:01:33]} 22. d5 {[%emt 0:04:44]} f5 {[%emt 0:05:33]} 23. g4 {[%emt 0:01:55]} Qf4 {[%emt 0:12:40]} 24. Nxf5 {[%emt 0:01:06]} Bxf5 {[%emt 0:01:14]} 25. gxf5 {[%emt 0:00:13]} Qxf5 {[%emt 0:01:32]} 26. Rad1 {[%emt 0:01:04]} Rd6 {[%emt 0:01:52]} 27. Rd2 {[%emt 0:01:20]} Qf4 {[%emt 0:00:48]} 28. Rde2 {[%emt 0:00:43]} Bd4+ {[%emt 0:02:12]} 29. Kh1 {[%emt 0:00:11]} Bf2 {[%emt 0:01:34]} 30. Re4 {[%emt 0:01:13]} Qf5 {[%emt 0:01:08]} 31. R1e2 Rdf6 {[%emt 0:01:31]} 32. g4 {[%emt 0:01:14]} Qf3+ {[%emt 0:00:37]} 33. Bg2 {[%emt 0:00:01]} Qg3 {[%emt 0:04:10]} 34. Re8 {[%emt 0:00:27]} Bd4 {[%emt 0:00:50]} 35. Rxf8+ {[%emt 0:00:18]} Rxf8 {[%emt 0:02:05]} 36. Qg6+ {[%emt 0:00:06]} Kh8 {[%emt 0:00:20]} 37. Qxh6+ Kg8 38. Qg6+ {[%emt 0:00:20]} Kh8 {[%emt 0:00:06]} 1/2-1/2

[Event "European School-ch 2019"]
[Site "Mamaia"]
[Date "2019.05.31"]
[Round "1.5"]
[White "Mammadov, Sadig"]
[Black "Paraschiv, Petronela-Alexandra"]
[Result "1-0"]
[ECO "B01"]
[WhiteElo "2205"]
[BlackElo "1760"]
[Annotator "ChessBase"]
[PlyCount "55"]
[EventDate "2019.05.31"]
[EventType "swiss"]
[EventCountry "ROU"]
[SourceTitle "playchess.com"]
[Source "ChessBase"]
[SourceQuality "1"]
[TimeControl "40/5400+30:1800+30"]

1. e4 {[%emt 0:00:00]} d5 {[%emt 0:00:00]} 2. exd5 {[%emt 0:00:00]} Qxd5 {[%emt 0:00:00]} 3. Nc3 {[%emt 0:00:00]} Qa5 {[%emt 0:00:00]} 4. Bc4 {[%emt 0:02:17]} Nf6 {[%emt 0:00:48]} 5. d3 {[%emt 0:00:44]} c6 {[%emt 0:00:32]} 6. Nge2 {[%emt 0:03:01]} Bf5 {[%emt 0:00:21]} 7. O-O {[%emt 0:01:59]} e6 {[%emt 0:00:04]} 8. Bd2 {[%emt 0:01:34]} Qc7 {[%emt 0:00:21]} 9. Ng3 {[%emt 0:00:38]} Bg6 {[%emt 0:01:30]} 10. f4 {[%emt 0:04:17]} Bc5+ {[%emt 0:02:40]} 11. Kh1 {[%emt 0:00:01]} O-O {[%emt 0:00:21]} 12. Qf3 {[%emt 0:04:56]} Nbd7 {[%emt 0:01:56]} 13. Rae1 {[%emt 0:02:24]} b5 {[%emt 0:01:42]} 14. Bb3 {[%emt 0:00:02]} a5 {[%emt 0:01:06]} 15. a4 {[%emt 0:03:54]} b4 {[%emt 0:01:08]} 16. Nce4 {[%emt 0:03:05]} Bd4 {[%emt 0:02:18]} 17. c3 {[%emt 0:15:22]} bxc3 {[%emt 0:00:56]} 18. bxc3 {[%emt 0:00:01]} Ba7 {[%emt 0:00:51]} 19. f5 {[%emt 0:04:55]} exf5 {[%emt 0:00:32]} 20. Nxf5 {[%emt 0:00:18]} Bh5 {[%emt 0:04:07]} 21. Qh3 {[%emt 0:04:20]} Kh8 {[%emt 0:10:14]} 22. Nxf6 {[%emt 0:01:03]} Nxf6 {[%emt 0:00:09]} 23. Bg5 {[%emt 0:06:08]} Bg4 {[%emt 0:05:14]} 24. Qh4 {[%emt 0:09:27]} Bxf5 {[%emt 0:05:10]} 25. Rxf5 {[%emt 0:00:29]} Nd5 {[%emt 0:01:38]} 26. Bxd5 {[%emt 0:01:23]} cxd5 {[%emt 0:00:08]} 27. Bf6 {[%emt 0:00:11]} Rg8 {[%emt 0:01:26]} 28. Rh5 {[%emt 0:00:15]} 1-0

[Event "European School-ch 2019"]
[Site "Mamaia"]
[Date "2019.05.31"]
[Round "1.6"]
[White "Mocanu, Valeria"]
[Black "David, Bogdan-Emanuel"]
[Result "0-1"]
[ECO "B30"]
[WhiteElo "1760"]
[BlackElo "2162"]
[Annotator "ChessBase"]
[PlyCount "72"]
[EventDate "2019.05.31"]
[EventType "swiss"]
[EventCountry "ROU"]
[SourceTitle "playchess.com"]
[Source "ChessBase"]
[SourceQuality "1"]
[TimeControl "40/5400+30:1800+30"]

1. e4 {[%emt 0:00:00]} c5 {[%emt 0:00:00]} 2. Nf3 {[%emt 0:00:00]} Nc6 {[%emt 0:00:02]} 3. Bb5 {[%emt 0:00:00]} d6 {[%emt 0:00:25]} 4. O-O {[%emt 0:00:15]} Bd7 {[%emt 0:00:30]} 5. Re1 {[%emt 0:01:14]} a6 {[%emt 0:00:53]} 6. Bf1 {[%emt 0:00:11]} Nf6 {[%emt 0:01:02]} 7. c3 {[%emt 0:00:39]} Bg4 {[%emt 0:02:25]} 8. h3 {[%emt 0:01:00]} Bxf3 {[%emt 0:02:28]} 9. Qxf3 {[%emt 0:09:56]} e6 {[%emt 0:02:05]} 10. Na3 {[%emt 0:07:22]} Be7 {[%emt 0:02:19]} 11. Nc2 {[%emt 0:03:26]} Qb6 {[%emt 0:13:06]} 12. d3 {[%emt 0:04:09]} O-O {[%emt 0:09:41]} 13. Rb1 {[%emt 0:03:25]} Rac8 {[%emt 0:06:15]} 14. Qg3 {[%emt 0:09:48]} Ne5 {[%emt 0:09:19]} 15. f4 {[%emt 0:06:06]} Ng6 {[%emt 0:11:06]} 16. Qf2 {[%emt 0:06:34]} Rfe8 {[%emt 0:13:59]} 17. Be3 {[%emt 0:04:40]} Qc6 {[%emt 0:00:51]} 18. Be2 {[%emt 0:16:08]} Qa4 {[%emt 0:09:20]} 19. Bf3 {[%emt 0:03:29]} d5 {[%emt 0:08:28]} 20. e5 {[%emt 0:06:58]} Nd7 {[%emt 0:00:47]} 21. g3 {[%emt 0:01:11]} f6 {[%emt 0:02:19]} 22. exf6 {[%emt 0:05:31]} Bxf6 {[%emt 0:00:32]} 23. f5 {[%emt 0:03:59]} Nge5 {[%emt 0:00:21]} 24. fxe6 {[%emt 0:00:20]} Nxf3+ {[%emt 0:00:14]} 25. Qxf3 {[%emt 0:00:04]} Ne5 {[%emt 0:00:09]} 26. Qd1 {[%emt 0:04:15]} Rxe6 {[%emt 0:01:05]} 27. d4 {[%emt 0:01:55]} Nc6 {[%emt 0:03:09]} 28. dxc5 {[%emt 0:00:38]} Qxa2 {[%emt 0:00:34]} 29. Nd4 {[%emt 0:00:36]} Re4 {[%emt 0:00:27]} 30. Nxc6 {[%emt 0:00:35]} bxc6 {[%emt 0:00:24]} 31. Qd2 {[%emt 0:00:28]} Rb8 {[%emt 0:00:39]} 32. Kg2 {[%emt 0:00:31]} a5 {[%emt 0:00:26]} 33. Bf2 {[%emt 0:00:29]} Rxe1 {[%emt 0:00:33]} 34. Bxe1 {[%emt 0:00:23]} Qxb1 {[%emt 0:00:07]} 35. b4 {[%emt 0:00:31]} axb4 {[%emt 0:00:09]} 36. cxb4 {[%emt 0:00:04]} Qb2 {[%emt 0:00:05]} 0-1

[Event "European School-ch 2019"]
[Site "Mamaia"]
[Date "2019.05.31"]
[Round "1.7"]
[White "Ceres, Dragos"]
[Black "Priechodsky, Radovan"]
[Result "1-0"]
[ECO "B31"]
[WhiteElo "2317"]
[BlackElo "1820"]
[Annotator "ChessBase"]
[PlyCount "86"]
[EventDate "2019.05.31"]
[EventType "swiss"]
[EventCountry "ROU"]
[SourceTitle "playchess.com"]
[Source "ChessBase"]
[SourceQuality "1"]
[TimeControl "40/5400+30:1800+30"]

1. e4 {[%emt 0:00:00]} c5 {[%emt 0:00:01]} 2. Nf3 {[%emt 0:00:00]} Nc6 {[%emt 0:00:14]} 3. Bb5 {[%emt 0:00:00]} g6 {[%emt 0:00:05]} 4. O-O {[%emt 0:00:00]} Bg7 {[%emt 0:00:14]} 5. Nc3 {[%emt 0:00:00]} Nf6 {[%emt 0:00:37]} 6. e5 {[%emt 0:00:43]} Nh5 {[%emt 0:06:43]} 7. Bxc6 {[%emt 0:00:49]} bxc6 {[%emt 0:00:05]} 8. d3 {[%emt 0:00:09]} d6 {[%emt 0:04:09]} 9. Re1 {[%emt 0:00:59]} O-O {[%emt 0:06:20]} 10. h3 {[%emt 0:00:46]} dxe5 {[%emt 0:27:07]} 11. Nxe5 {[%emt 0:00:09]} Qc7 {[%emt 0:01:07]} 12. Qe2 {[%emt 0:05:59]} Nf6 {[%emt 0:04:09]} 13. Na4 {[%emt 0:06:03]} Nd5 {[%emt 0:10:31]} 14. Nxc5 {[%emt 0:01:32]} f6 {[%emt 0:01:14]} 15. Nf3 {[%emt 0:04:03]} e5 {[%emt 0:00:29]} 16. c4 {[%emt 0:03:03]} Qb6 {[%emt 0:03:45]} 17. Nb3 {[%emt 0:01:07]} Nc7 {[%emt 0:05:29]} 18. Be3 {[%emt 0:03:21]} Qb8 {[%emt 0:00:55]} 19. Bc5 {[%emt 0:00:35]} Ne6 {[%emt 0:03:53]} 20. Bxf8 {[%emt 0:00:12]} Nf4 {[%emt 0:00:41]} 21. Qe4 {[%emt 0:02:27]} Kxf8 {[%emt 0:01:11]} 22. d4 {[%emt 0:01:34]} f5 {[%emt 0:03:58]} 23. Qe3 {[%emt 0:00:48]} e4 {[%emt 0:00:56]} 24. Ne5 {[%emt 0:02:33]} Bxe5 {[%emt 0:01:22]} 25. dxe5 {[%emt 0:00:22]} Nd3 {[%emt 0:00:09]} 26. Red1 {[%emt 0:00:21]} Qb4 {[%emt 0:02:46]} 27. Rxd3 {[%emt 0:01:38]} exd3 {[%emt 0:00:42]} 28. Qxd3 {[%emt 0:00:01]} Be6 {[%emt 0:00:49]} 29. Rc1 {[%emt 0:00:09]} Ke7 {[%emt 0:00:56]} 30. a3 {[%emt 0:00:13]} Qb8 {[%emt 0:01:50]} 31. Na5 {[%emt 0:06:05]} Qc7 {[%emt 0:02:07]} 32. b4 {[%emt 0:00:09]} Rd8 {[%emt 0:00:02]} 33. Qe3 {[%emt 0:00:07]} Kf7 {[%emt 0:00:22]} 34. Qc5 {[%emt 0:00:51]} Bd7 {[%emt 0:04:20]} 35. Rd1 {[%emt 0:00:27]} Be6 {[%emt 0:00:05]} 36. Rxd8 {[%emt 0:00:44]} Qxd8 {[%emt 0:00:02]} 37. Nxc6 {[%emt 0:00:10]} Qd1+ {[%emt 0:00:42]} 38. Kh2 {[%emt 0:00:05]} Qd7 {[%emt 0:00:38]} 39. Qxa7 {[%emt 0:00:24]} Qxa7 {[%emt 0:00:59]} 40. Nxa7 {[%emt 0:00:06]} Bxc4 {[%emt 0:01:07]} 41. b5 {[%emt 0:30:16]} Ke6 {[%emt 0:30:21]} 42. b6 {[%emt 0:00:23]} Ba6 {[%emt 0:00:19]} 43. f4 {[%emt 0:00:04]} Kd5 1-0

[Event "European School-ch 2019"]
[Site "Mamaia"]
[Date "2019.05.31"]
[Round "1.8"]
[White "Gleizer, Adar"]
[Black "Ognean, Mihnea-Ionut"]
[Result "0-1"]
[ECO "B33"]
[WhiteElo "1759"]
[BlackElo "2260"]
[Annotator "ChessBase"]
[PlyCount "52"]
[EventDate "2019.05.31"]
[EventType "swiss"]
[EventCountry "ROU"]
[SourceTitle "playchess.com"]
[Source "ChessBase"]
[SourceQuality "1"]
[TimeControl "40/5400+30:1800+30"]

1. e4 {[%emt 0:00:00]} c5 {[%emt 0:00:00]} 2. Nf3 {[%emt 0:00:02]} Nc6 {[%emt 0:00:00]} 3. d4 {[%emt 0:00:09]} cxd4 {[%emt 0:00:00]} 4. Nxd4 {[%emt 0:00:08]} Nf6 {[%emt 0:00:16]} 5. Nc3 {[%emt 0:00:25]} e5 {[%emt 0:00:16]} 6. Ndb5 {[%emt 0:00:26]} d6 {[%emt 0:00:22]} 7. Bg5 {[%emt 0:00:21]} a6 {[%emt 0:00:10]} 8. Na3 {[%emt 0:00:10]} b5 {[%emt 0:00:13]} 9. Nd5 {[%emt 0:00:07]} Be7 {[%emt 0:00:10]} 10. Bxf6 {[%emt 0:00:13]} Bxf6 {[%emt 0:00:09]} 11. c3 {[%emt 0:00:29]} Bg5 {[%emt 0:00:32]} 12. Nc2 {[%emt 0:00:24]} Rb8 {[%emt 0:00:25]} 13. a3 {[%emt 0:01:30]} O-O {[%emt 0:00:24]} 14. Be2 {[%emt 0:00:32]} Be6 {[%emt 0:01:09]} 15. Ncb4 {[%emt 0:06:53]} Qc8 {[%emt 0:02:36]} 16. a4 {[%emt 0:06:47]} Nxb4 {[%emt 0:04:29]} 17. Nxb4 {[%emt 0:06:08]} a5 {[%emt 0:00:25]} 18. Nd5 {[%emt 0:02:03]} bxa4 {[%emt 0:00:57]} 19. Qc2 {[%emt 0:11:04]} f5 {[%emt 0:02:06]} 20. Bf3 {[%emt 0:02:06]} Qc5 {[%emt 0:02:23]} 21. Rd1 {[%emt 0:00:42]} a3 {[%emt 0:02:06]} 22. bxa3 {[%emt 0:00:18]} Qxa3 {[%emt 0:01:03]} 23. O-O {[%emt 0:00:30]} Rb2 {[%emt 0:01:13]} 24. Qd3 {[%emt 0:00:44]} Qc5 {[%emt 0:00:38]} 25. exf5 {[%emt 0:02:12]} Bxf5 {[%emt 0:00:38]} 26. Be4 {[%emt 0:00:13]} Bxe4 {[%emt 0:00:10]} 0-1

[Event "European School-ch 2019"]
[Site "Mamaia"]
[Date "2019.05.31"]
[Round "1.9"]
[White "Padurariu, Mihai-Edward"]
[Black "Ovcharenko, Hryhoriy"]
[Result "1/2-1/2"]
[ECO "B20"]
[WhiteElo "2090"]
[BlackElo "1740"]
[Annotator "NA"]
[PlyCount "85"]
[EventDate "2019.05.31"]
[EventType "swiss"]
[EventCountry "ROU"]
[SourceTitle "playchess.com"]
[Source "ChessBase"]
[SourceQuality "1"]
[TimeControl "40/5400+30:1800+30"]

1. e4 {[%emt 0:00:00]} c5 {[%emt 0:00:00]} 2. b3 {[%emt 0:00:12]} Nc6 {[%emt 0:00:00]} 3. Bb2 {[%emt 0:00:04]} e5 {[%emt 0:00:13]} 4. Bc4 {[%emt 0:00:47]} Nf6 {[%emt 0:00:22]} 5. Nc3 {[%emt 0:00:32]} d6 {[%emt 0:01:19]} 6. Nge2 {[%emt 0:05:58]} a6 {[%emt 0:00:52]} 7. a4 {[%emt 0:00:04]} g6 {[%emt 0:00:13]} 8. d3 {[%emt 0:07:14]} Bg7 {[%emt 0:00:18]} 9. O-O {[%emt 0:03:27]} O-O {[%emt 0:00:21]} 10. h3 {[%emt 0:02:36]} Be6 {[%emt 0:11:56]} 11. Qd2 {[%emt 0:09:17]} Ne7 {[%emt 0:07:56]} 12. f4 {[%emt 0:04:40]} exf4 {[%emt 0:04:14]} 13. Nxf4 {[%emt 0:00:50]} d5 {[%emt 0:02:19]} 14. exd5 {[%emt 0:02:20]} Bxd5 {[%emt 0:01:55]} 15. Ncxd5 {[%emt 0:05:35]} Nexd5 {[%emt 0:01:18]} 16. Nxd5 {[%emt 0:03:59]} Nxd5 {[%emt 0:00:09]} 17. Bxg7 {[%emt 0:00:06]} Kxg7 {[%emt 0:00:45]} 18. Qf2 {[%emt 0:04:55]} Rc8 {[%emt 0:16:17]} 19. Qf3 {[%emt 0:02:45]} Nb4 {[%emt 0:01:47]} 20. Qxb7 {[%emt 0:18:20]} Rc7 {[%emt 0:05:00]} 21. Qf3 {[%emt 0:02:18]} Qd4+ {[%emt 0:03:45]} 22. Kh1 {[%emt 0:04:29]} Nxc2 {[%emt 0:00:26]} 23. Ra2 {[%emt 0:01:08]} Ne3 {[%emt 0:01:57]} 24. Re1 {[%emt 0:00:22]} Nxc4 {[%emt 0:00:14]} 25. dxc4 {[%emt 0:00:21]} Rd8 {[%emt 0:01:30]} 26. Rae2 {[%emt 0:01:10]} Rcd7 {[%emt 0:02:36]} 27. Re5 {[%emt 0:02:03]} Qd3 {[%emt 0:06:44]} 28. R5e3 {[%emt 0:09:03]} Qd6 {[%emt 0:01:02]} 29. Qe4 {[%emt 0:00:50]} Qd4 {[%emt 0:02:45]} 30. Qc6 {[%emt 0:01:16]} Rd6 {[%emt 0:00:38]} 31. Qc7 {[%emt 0:00:37]} R8d7 {[%emt 0:00:25]} 32. Qc8 {[%emt 0:01:11]} Rd8 {[%emt 0:00:20]} 33. Qb7 {[%emt 0:00:10]} R8d7 {[%emt 0:00:21]} 34. Qf3 {[%emt 0:00:05]} Rf6 {[%emt 0:08:34]} 35. Qg3 {[%emt 0:00:52]} Qd2 {[%emt 0:02:58]} 36. Qe5 {[%emt 0:05:30]} Qd4 {[%emt 0:02:02]} 37. Qb8 {[%emt 0:00:47]} Rd8 {[%emt 0:00:31]} 38. Qh2 {[%emt 0:00:57]} Qd2 {[%emt 0:00:36]} 39. Qg3 {[%emt 0:00:30]} Rd7 {[%emt 0:00:38]} 40. Qg5 {[%emt 0:01:29]} Rf5 {[%emt 0:02:37]} 41. Qg3 {[%emt 0:30:26]} h5 {[%emt 0:33:46]} 42. Re5 {[%emt 0:00:00]} Rd3 {[%emt 0:00:00]} 43. R5e3 {[%emt 0:00:00]} 1/2-1/2